{"text_format":"3","workbook":"xlsx","n_sheets":1,"sheets":["Lični mesečni budžet"],"read":"whole","date_system":"1900"}

{"sheet":"Lični mesečni budžet","index":0,"n_rows":62,"n_cols":10,"rows_kept":62,"merged":[[0,1,0,9],[2,1,4,1],[2,2,2,3],[2,7,2,8],[3,2,3,3],[3,7,3,8],[4,2,4,3],[4,6,4,8],[5,1,7,1],[5,2,5,3],[5,7,5,8],[6,2,6,3],[6,7,6,8],[7,2,7,3],[7,6,7,8],[20,6,20,9],[21,1,21,4],[29,6,29,9],[31,1,31,4],[36,6,36,9],[38,1,38,4],[42,6,42,9],[44,1,44,4],[48,6,48,9],[52,1,52,4],[55,6,55,9]]}
[null,"Lični mesečni budžet"]
[]
[null,"PREDVIĐENI MESEČNI PRIHOD","Prihod 1",null,{"v":2500,"d":"2,500 RSD"},null,"UKUPNI PREDVIĐENI TROŠAK ","(predviđeni prihod minus troškovi)",null,{"$f":"SUM(C21,C31,C38,C44,C52,C62,H20,H29,H36,H42,H48,H55)","v":{"v":2060,"d":"2,060 RSD"}}]
[null,null,"Dodatni prihod",null,{"v":500,"d":"500 RSD"},null,"UKUPNI STVARNI TROŠAK ","(stvarni prihod minus troškovi)",null,{"$f":"SUM(D21,D31,D38,D44,D52,D62,I20,I29,I36,I42,I48,I55)","v":{"v":2040,"d":"2,040 RSD"}}]
[null,null,"Ukupan mesečni prihod",null,{"$f":"SUM(E3:E4)","v":{"v":3000,"d":"3,000 RSD"}},null,"Ukupna razlika troška",null,null,{"$f":"SUM(E21,E31,E38,E44,E52,E62,J20,J29,J36,J42,J48,J55)","v":{"v":20,"d":"20 RSD"}}]
[null,"STVARNI MESEČNI PRIHOD","Prihod 1",null,{"v":2500,"d":"2,500 RSD"},null,"PREDVIĐENI BILANS","(predviđeni prihod minus troškovi)",null,{"$f":"E5-J3","v":{"v":940,"d":"940 RSD"}}]
[null,null,"Dodatni prihod",null,{"v":500,"d":"500 RSD"},null,"STVARNI BILANS","(stvarni prihod minus troškovi)",null,{"$f":"E8-J4","v":{"v":960,"d":"960 RSD"}}]
[null,null,"Ukupan mesečni prihod",null,{"$f":"SUM(E6:E7)","v":{"v":3000,"d":"3,000 RSD"}},null,"RAZLIKA SALDA (stvarni minus predviđeni)",null,null,{"$f":"J7-J6","v":{"v":20,"d":"20 RSD"}}]
[]
[null,"DOMAĆINSTVO","Predviđeni trošak","Stvarni trošak","Razlika",null,"ZABAVA","Predviđeni trošak","Stvarni trošak","Razlika"]
[null,"Hipoteka ili izdavanje",{"v":1500,"d":"1,500 RSD"},{"v":1400,"d":"1,400 RSD"},{"$f":"Domaćinstvo[[#This Row],[Predviđeni trošak]]-Domaćinstvo[[#This Row],[Stvarni trošak]]","v":{"v":100,"d":"100 RSD"}},null,"Video/DVD",{"v":0,"d":"0 RSD"},{"v":50,"d":"50 RSD"},{"$f":"Zabava[[#This Row],[Predviđeni trošak]]-Zabava[[#This Row],[Stvarni trošak]]","v":{"v":-50,"d":"-50 RSD"}}]
[null,"Telefon",{"v":60,"d":"60 RSD"},{"v":100,"d":"100 RSD"},{"$f":"Domaćinstvo[[#This Row],[Predviđeni trošak]]-Domaćinstvo[[#This Row],[Stvarni trošak]]","v":{"v":-40,"d":"-40 RSD"}},null,"CD-ovi",null,null,{"$f":"Zabava[[#This Row],[Predviđeni trošak]]-Zabava[[#This Row],[Stvarni trošak]]","v":{"v":0,"d":"0 RSD"}}]
[null,"Struja",{"v":50,"d":"50 RSD"},{"v":60,"d":"60 RSD"},{"$f":"Domaćinstvo[[#This Row],[Predviđeni trošak]]-Domaćinstvo[[#This Row],[Stvarni trošak]]","v":{"v":-10,"d":"-10 RSD"}},null,"Filmovi",null,null,{"$f":"Zabava[[#This Row],[Predviđeni trošak]]-Zabava[[#This Row],[Stvarni trošak]]","v":{"v":0,"d":"0 RSD"}}]
[null,"Gas",{"v":200,"d":"200 RSD"},{"v":180,"d":"180 RSD"},{"$f":"Domaćinstvo[[#This Row],[Predviđeni trošak]]-Domaćinstvo[[#This Row],[Stvarni trošak]]","v":{"v":20,"d":"20 RSD"}},null,"Koncerti",null,null,{"$f":"Zabava[[#This Row],[Predviđeni trošak]]-Zabava[[#This Row],[Stvarni trošak]]","v":{"v":0,"d":"0 RSD"}}]
[null,"Voda i kanalizacija",null,null,{"$f":"Domaćinstvo[[#This Row],[Predviđeni trošak]]-Domaćinstvo[[#This Row],[Stvarni trošak]]","v":{"v":0,"d":"0 RSD"}},null,"Sportski događaji",null,null,{"$f":"Zabava[[#This Row],[Predviđeni trošak]]-Zabava[[#This Row],[Stvarni trošak]]","v":{"v":0,"d":"0 RSD"}}]
[null,"Kablovska televizija",null,null,{"$f":"Domaćinstvo[[#This Row],[Predviđeni trošak]]-Domaćinstvo[[#This Row],[Stvarni trošak]]","v":{"v":0,"d":"0 RSD"}},null,"Pozorište",null,null,{"$f":"Zabava[[#This Row],[Predviđeni trošak]]-Zabava[[#This Row],[Stvarni trošak]]","v":{"v":0,"d":"0 RSD"}}]
[null,"Uklanjanje otpada",null,null,{"$f":"Domaćinstvo[[#This Row],[Predviđeni trošak]]-Domaćinstvo[[#This Row],[Stvarni trošak]]","v":{"v":0,"d":"0 RSD"}},null,"Drugo",null,null,{"$f":"Zabava[[#This Row],[Predviđeni trošak]]-Zabava[[#This Row],[Stvarni trošak]]","v":{"v":0,"d":"0 RSD"}}]
[null,"Održavanje ili popravke",null,null,{"$f":"Domaćinstvo[[#This Row],[Predviđeni trošak]]-Domaćinstvo[[#This Row],[Stvarni trošak]]","v":{"v":0,"d":"0 RSD"}},null,"Drugo",null,null,{"$f":"Zabava[[#This Row],[Predviđeni trošak]]-Zabava[[#This Row],[Stvarni trošak]]","v":{"v":0,"d":"0 RSD"}}]
[null,"Pribor",null,null,{"$f":"Domaćinstvo[[#This Row],[Predviđeni trošak]]-Domaćinstvo[[#This Row],[Stvarni trošak]]","v":{"v":0,"d":"0 RSD"}},null,"Drugo",null,null,{"$f":"Zabava[[#This Row],[Predviđeni trošak]]-Zabava[[#This Row],[Stvarni trošak]]","v":{"v":0,"d":"0 RSD"}}]
[null,"Drugo",null,null,{"$f":"Domaćinstvo[[#This Row],[Predviđeni trošak]]-Domaćinstvo[[#This Row],[Stvarni trošak]]","v":{"v":0,"d":"0 RSD"}},null,"Ukupno",{"$f":"SUBTOTAL(109,Zabava[Predviđeni trošak])","v":{"v":0,"d":"0 RSD"}},{"$f":"SUBTOTAL(109,Zabava[Stvarni trošak])","v":{"v":50,"d":"50 RSD"}},{"$f":"SUBTOTAL(109,Zabava[Razlika])","v":{"v":-50,"d":"-50 RSD"}}]
[null,"Ukupno",{"$f":"SUBTOTAL(109,Domaćinstvo[Predviđeni trošak])","v":{"v":1810,"d":"1,810 RSD"}},{"$f":"SUBTOTAL(109,Domaćinstvo[Stvarni trošak])","v":{"v":1740,"d":"1,740 RSD"}},{"$f":"SUBTOTAL(109,Domaćinstvo[Razlika])","v":{"v":70,"d":"70 RSD"}}]
[{"$nulls":6},"ZAJMOVI","Predviđeni trošak","Stvarni trošak","Razlika"]
[null,"PREVOZ","Predviđeni trošak","Stvarni trošak","Razlika",null,"Lično",null,null,{"$f":"Zajmovi[[#This Row],[Predviđeni trošak]]-Zajmovi[[#This Row],[Stvarni trošak]]","v":{"v":0,"d":"0 RSD"}}]
[null,"Otplata vozila",{"v":250,"d":"250 RSD"},{"v":250,"d":"250 RSD"},{"$f":"Prevoz[[#This Row],[Predviđeni trošak]]-Prevoz[[#This Row],[Stvarni trošak]]","v":{"v":0,"d":"0 RSD"}},null,"Studentski",null,null,{"$f":"Zajmovi[[#This Row],[Predviđeni trošak]]-Zajmovi[[#This Row],[Stvarni trošak]]","v":{"v":0,"d":"0 RSD"}}]
[null,"Naknada za autobus/taksi",null,null,{"$f":"Prevoz[[#This Row],[Predviđeni trošak]]-Prevoz[[#This Row],[Stvarni trošak]]","v":{"v":0,"d":"0 RSD"}},null,"Kreditna kartica",null,null,{"$f":"Zajmovi[[#This Row],[Predviđeni trošak]]-Zajmovi[[#This Row],[Stvarni trošak]]","v":{"v":0,"d":"0 RSD"}}]
[null,"Osiguranje",null,null,{"$f":"Prevoz[[#This Row],[Predviđeni trošak]]-Prevoz[[#This Row],[Stvarni trošak]]","v":{"v":0,"d":"0 RSD"}},null,"Kreditna kartica",null,null,{"$f":"Zajmovi[[#This Row],[Predviđeni trošak]]-Zajmovi[[#This Row],[Stvarni trošak]]","v":{"v":0,"d":"0 RSD"}}]
[null,"Vozačka dozvola",null,null,{"$f":"Prevoz[[#This Row],[Predviđeni trošak]]-Prevoz[[#This Row],[Stvarni trošak]]","v":{"v":0,"d":"0 RSD"}},null,"Kreditna kartica",null,null,{"$f":"Zajmovi[[#This Row],[Predviđeni trošak]]-Zajmovi[[#This Row],[Stvarni trošak]]","v":{"v":0,"d":"0 RSD"}}]
[null,"Gorivo",null,null,{"$f":"Prevoz[[#This Row],[Predviđeni trošak]]-Prevoz[[#This Row],[Stvarni trošak]]","v":{"v":0,"d":"0 RSD"}},null,"Drugo",null,null,{"$f":"Zajmovi[[#This Row],[Predviđeni trošak]]-Zajmovi[[#This Row],[Stvarni trošak]]","v":{"v":0,"d":"0 RSD"}}]
[null,"Održavanje",null,null,{"$f":"Prevoz[[#This Row],[Predviđeni trošak]]-Prevoz[[#This Row],[Stvarni trošak]]","v":{"v":0,"d":"0 RSD"}},null,"Ukupno",{"$f":"SUBTOTAL(109,Zajmovi[Predviđeni trošak])","v":{"v":0,"d":"0 RSD"}},{"$f":"SUBTOTAL(109,Zajmovi[Stvarni trošak])","v":{"v":0,"d":"0 RSD"}},{"$f":"SUBTOTAL(109,Zajmovi[Razlika])","v":{"v":0,"d":"0 RSD"}}]
[null,"Drugo",null,null,{"$f":"Prevoz[[#This Row],[Predviđeni trošak]]-Prevoz[[#This Row],[Stvarni trošak]]","v":{"v":0,"d":"0 RSD"}}]
[null,"Ukupno",{"$f":"SUBTOTAL(109,Prevoz[Predviđeni trošak])","v":{"v":250,"d":"250 RSD"}},{"$f":"SUBTOTAL(109,Prevoz[Stvarni trošak])","v":{"v":250,"d":"250 RSD"}},{"$f":"SUBTOTAL(109,Prevoz[Razlika])","v":{"v":0,"d":"0 RSD"}},null,"POREZI","Predviđeni trošak","Stvarni trošak","Razlika"]
[{"$nulls":6},"Savezni",null,null,{"$f":"Porezi[[#This Row],[Predviđeni trošak]]-Porezi[[#This Row],[Stvarni trošak]]","v":{"v":0,"d":"0 RSD"}}]
[null,"OSIGURANJE","Predviđeni trošak","Stvarni trošak","Razlika",null,"Državni",null,null,{"$f":"Porezi[[#This Row],[Predviđeni trošak]]-Porezi[[#This Row],[Stvarni trošak]]","v":{"v":0,"d":"0 RSD"}}]
[null,"Kuća",null,null,{"$f":"Osiguranje[[#This Row],[Predviđeni trošak]]-Osiguranje[[#This Row],[Stvarni trošak]]","v":{"v":0,"d":"0 RSD"}},null,"Lokalni",null,null,{"$f":"Porezi[[#This Row],[Predviđeni trošak]]-Porezi[[#This Row],[Stvarni trošak]]","v":{"v":0,"d":"0 RSD"}}]
[null,"Zdravstveno",null,null,{"$f":"Osiguranje[[#This Row],[Predviđeni trošak]]-Osiguranje[[#This Row],[Stvarni trošak]]","v":{"v":0,"d":"0 RSD"}},null,"Drugo",null,null,{"$f":"Porezi[[#This Row],[Predviđeni trošak]]-Porezi[[#This Row],[Stvarni trošak]]","v":{"v":0,"d":"0 RSD"}}]
[null,"Životno",null,null,{"$f":"Osiguranje[[#This Row],[Predviđeni trošak]]-Osiguranje[[#This Row],[Stvarni trošak]]","v":{"v":0,"d":"0 RSD"}},null,"Ukupno",{"$f":"SUBTOTAL(109,Porezi[Predviđeni trošak])","v":{"v":0,"d":"0 RSD"}},{"$f":"SUBTOTAL(109,Porezi[Stvarni trošak])","v":{"v":0,"d":"0 RSD"}},{"$f":"SUBTOTAL(109,Porezi[Razlika])","v":{"v":0,"d":"0 RSD"}}]
[null,"Drugo",null,null,{"$f":"Osiguranje[[#This Row],[Predviđeni trošak]]-Osiguranje[[#This Row],[Stvarni trošak]]","v":{"v":0,"d":"0 RSD"}}]
[null,"Ukupno",{"$f":"SUBTOTAL(109,Osiguranje[Predviđeni trošak])","v":{"v":0,"d":"0 RSD"}},{"$f":"SUBTOTAL(109,Osiguranje[Stvarni trošak])","v":{"v":0,"d":"0 RSD"}},{"$f":"SUBTOTAL(109,Osiguranje[Razlika])","v":{"v":0,"d":"0 RSD"}},null,"ŠTEDNJA ILI ULAGANJA","Predviđeni trošak","Stvarni trošak","Razlika"]
[{"$nulls":6},"Penzioni račun",null,null,{"$f":"UštedeIliUlaganje[[#This Row],[Predviđeni trošak]]-UštedeIliUlaganje[[#This Row],[Stvarni trošak]]","v":{"v":0,"d":"0 RSD"}}]
[null,"HRANA","Predviđeni trošak","Stvarni trošak","Razlika",null,"Ulagački račun",null,null,{"$f":"UštedeIliUlaganje[[#This Row],[Predviđeni trošak]]-UštedeIliUlaganje[[#This Row],[Stvarni trošak]]","v":{"v":0,"d":"0 RSD"}}]
[null,"Namirnice",null,null,{"$f":"Hrana[[#This Row],[Predviđeni trošak]]-Hrana[[#This Row],[Stvarni trošak]]","v":{"v":0,"d":"0 RSD"}},null,"Drugo",null,null,{"$f":"UštedeIliUlaganje[[#This Row],[Predviđeni trošak]]-UštedeIliUlaganje[[#This Row],[Stvarni trošak]]","v":{"v":0,"d":"0 RSD"}}]
[null,"Restorani",null,null,{"$f":"Hrana[[#This Row],[Predviđeni trošak]]-Hrana[[#This Row],[Stvarni trošak]]","v":{"v":0,"d":"0 RSD"}},null,"Ukupno",{"$f":"SUBTOTAL(109,UštedeIliUlaganje[Predviđeni trošak])","v":{"v":0,"d":"0 RSD"}},{"$f":"SUBTOTAL(109,UštedeIliUlaganje[Stvarni trošak])","v":{"v":0,"d":"0 RSD"}},{"$f":"SUBTOTAL(109,UštedeIliUlaganje[Razlika])","v":{"v":0,"d":"0 RSD"}}]
[null,"Drugo",null,null,{"$f":"Hrana[[#This Row],[Predviđeni trošak]]-Hrana[[#This Row],[Stvarni trošak]]","v":{"v":0,"d":"0 RSD"}}]
[null,"Ukupno",{"$f":"SUBTOTAL(109,Hrana[Predviđeni trošak])","v":{"v":0,"d":"0 RSD"}},{"$f":"SUBTOTAL(109,Hrana[Stvarni trošak])","v":{"v":0,"d":"0 RSD"}},{"$f":"SUBTOTAL(109,Hrana[Razlika])","v":{"v":0,"d":"0 RSD"}},null,"POKLONI I DONACIJE","Predviđeni trošak","Stvarni trošak","Razlika"]
[{"$nulls":6},"Dobrotvorni prilog 1",null,null,{"$f":"PokloniIDonacije[[#This Row],[Predviđeni trošak]]-PokloniIDonacije[[#This Row],[Stvarni trošak]]","v":{"v":0,"d":"0 RSD"}}]
[null,"LJUBIMCI","Predviđeni trošak","Stvarni trošak","Razlika",null,"Dobrotvorni prilog 2",null,null,{"$f":"PokloniIDonacije[[#This Row],[Predviđeni trošak]]-PokloniIDonacije[[#This Row],[Stvarni trošak]]","v":{"v":0,"d":"0 RSD"}}]
[null,"Hrana",null,null,{"$f":"Ljubimci[[#This Row],[Predviđeni trošak]]-Ljubimci[[#This Row],[Stvarni trošak]]","v":{"v":0,"d":"0 RSD"}},null,"Dobrotvorni prilog 3",null,null,{"$f":"PokloniIDonacije[[#This Row],[Predviđeni trošak]]-PokloniIDonacije[[#This Row],[Stvarni trošak]]","v":{"v":0,"d":"0 RSD"}}]
[null,"Zdravstvo",null,null,{"$f":"Ljubimci[[#This Row],[Predviđeni trošak]]-Ljubimci[[#This Row],[Stvarni trošak]]","v":{"v":0,"d":"0 RSD"}},null,"Ukupno",{"$f":"SUBTOTAL(109,PokloniIDonacije[Predviđeni trošak])","v":{"v":0,"d":"0 RSD"}},{"$f":"SUBTOTAL(109,PokloniIDonacije[Stvarni trošak])","v":{"v":0,"d":"0 RSD"}},{"$f":"SUBTOTAL(109,PokloniIDonacije[Razlika])","v":{"v":0,"d":"0 RSD"}}]
[null,"Doterivanje",null,null,{"$f":"Ljubimci[[#This Row],[Predviđeni trošak]]-Ljubimci[[#This Row],[Stvarni trošak]]","v":{"v":0,"d":"0 RSD"}}]
[null,"Igračke",null,null,{"$f":"Ljubimci[[#This Row],[Predviđeni trošak]]-Ljubimci[[#This Row],[Stvarni trošak]]","v":{"v":0,"d":"0 RSD"}},null,"PRAVNI ASPEKTI","Predviđeni trošak","Stvarni trošak","Razlika"]
[null,"Drugo",null,null,{"$f":"Ljubimci[[#This Row],[Predviđeni trošak]]-Ljubimci[[#This Row],[Stvarni trošak]]","v":{"v":0,"d":"0 RSD"}},null,"Advokat",null,null,{"$f":"PravniAspekti[[#This Row],[Predviđeni trošak]]-PravniAspekti[[#This Row],[Stvarni trošak]]","v":{"v":0,"d":"0 RSD"}}]
[null,"Ukupno",{"$f":"SUBTOTAL(109,Ljubimci[Predviđeni trošak])","v":{"v":0,"d":"0 RSD"}},{"$f":"SUBTOTAL(109,Ljubimci[Stvarni trošak])","v":{"v":0,"d":"0 RSD"}},{"$f":"SUBTOTAL(109,Ljubimci[Razlika])","v":{"v":0,"d":"0 RSD"}},null,"Alimentacija",null,null,{"$f":"PravniAspekti[[#This Row],[Predviđeni trošak]]-PravniAspekti[[#This Row],[Stvarni trošak]]","v":{"v":0,"d":"0 RSD"}}]
[{"$nulls":6},"Isplate zasnovane na zapleni ili sudskoj odluci",null,null,{"$f":"PravniAspekti[[#This Row],[Predviđeni trošak]]-PravniAspekti[[#This Row],[Stvarni trošak]]","v":{"v":0,"d":"0 RSD"}}]
[null,"LIČNA NEGA","Predviđeni trošak","Stvarni trošak","Razlika",null,"Drugo",null,null,{"$f":"PravniAspekti[[#This Row],[Predviđeni trošak]]-PravniAspekti[[#This Row],[Stvarni trošak]]","v":{"v":0,"d":"0 RSD"}}]
[null,"Medicinski troškovi",null,null,{"$f":"LičnaNega[[#This Row],[Predviđeni trošak]]-LičnaNega[[#This Row],[Stvarni trošak]]","v":{"v":0,"d":"0 RSD"}},null,"Ukupno",{"$f":"SUBTOTAL(109,PravniAspekti[Predviđeni trošak])","v":{"v":0,"d":"0 RSD"}},{"$f":"SUBTOTAL(109,PravniAspekti[Stvarni trošak])","v":{"v":0,"d":"0 RSD"}},{"$f":"SUBTOTAL(109,PravniAspekti[Razlika])","v":{"v":0,"d":"0 RSD"}}]
[null,"Kosa/nokti",null,null,{"$f":"LičnaNega[[#This Row],[Predviđeni trošak]]-LičnaNega[[#This Row],[Stvarni trošak]]","v":{"v":0,"d":"0 RSD"}}]
[null,"Odeća",null,null,{"$f":"LičnaNega[[#This Row],[Predviđeni trošak]]-LičnaNega[[#This Row],[Stvarni trošak]]","v":{"v":0,"d":"0 RSD"}}]
[null,"Hemijsko čišćenje",null,null,{"$f":"LičnaNega[[#This Row],[Predviđeni trošak]]-LičnaNega[[#This Row],[Stvarni trošak]]","v":{"v":0,"d":"0 RSD"}}]
[null,"Teretana",null,null,{"$f":"LičnaNega[[#This Row],[Predviđeni trošak]]-LičnaNega[[#This Row],[Stvarni trošak]]","v":{"v":0,"d":"0 RSD"}}]
[null,"Organizacioni dugovi ili naknade",null,null,{"$f":"LičnaNega[[#This Row],[Predviđeni trošak]]-LičnaNega[[#This Row],[Stvarni trošak]]","v":{"v":0,"d":"0 RSD"}}]
[null,"Drugo",null,null,{"$f":"LičnaNega[[#This Row],[Predviđeni trošak]]-LičnaNega[[#This Row],[Stvarni trošak]]","v":{"v":0,"d":"0 RSD"}}]
[null,"Ukupno",{"$f":"SUBTOTAL(109,LičnaNega[Predviđeni trošak])","v":{"v":0,"d":"0 RSD"}},{"$f":"SUBTOTAL(109,LičnaNega[Stvarni trošak])","v":{"v":0,"d":"0 RSD"}},{"$f":"SUBTOTAL(109,LičnaNega[Razlika])","v":{"v":0,"d":"0 RSD"}}]